fUST/lending_fUST_20260617
["ID","MTS","AMOUNT","RATE_DAILY","PERIOD"]
[425338853,1781700647000,-500.0,0.00014926,2]
[425338865,1781700647000,-151.0,0.00014988,2]
[425338836,1781700647000,-958.0,0.00014479,2]
[425338837,1781700647000,-1418.0,0.00014479,2]
[425338838,1781700647000,-445.0,0.00014479,2]
[425338827,1781700647000,-1928.24437462,0.00014159,2]
[425338830,1781700647000,-1928.24437462,0.00014159,2]
[425338831,1781700647000,-1928.24437462,0.00014159,2]
[425338835,1781700647000,-517.71163087,0.00014329,2]
[425338833,1781700647000,-188.181784,0.0001416,2]
[425338829,1781700647000,-1928.24437462,0.00014159,2]
[425338828,1781700647000,-1928.24437462,0.00014159,2]
[425338832,1781700647000,-1928.24437462,0.00014159,2]
[425338834,1781700647000,-236.37120345,0.00014305,2]
[425338839,1781700647000,-151.5,0.00014526,2]
[425338852,1781700647000,-500.0,0.00014926,2]
[425338841,1781700647000,-151.5,0.00014526,2]
[425338840,1781700647000,-151.5,0.00014526,2]
[425338844,1781700647000,-6420.13825558,0.0001473,2]
[425338848,1781700647000,-500.0,0.00014926,2]
[425338843,1781700647000,-166.68341211,0.00014598,2]
[425338851,1781700647000,-356.69570335,0.00014926,2]
[425338849,1781700647000,-500.0,0.00014926,2]
[425338846,1781700647000,-151.0,0.000148,2]
[425338842,1781700647000,-151.5,0.00014526,2]
[425338847,1781700647000,-178.83441,0.000148,2]
[425338850,1781700647000,-500.0,0.00014926,2]
[425338884,1781700647000,-798.0,0.000156,2]
[425338864,1781700647000,-184.04363609,0.00014926,2]
[425338863,1781700647000,-151.5,0.00014926,2]
[425338845,1781700647000,-9913.0,0.000148,2]
[425338886,1781700647000,-152.0,0.00015777,7]
[425338856,1781700647000,-316.67979508,0.00014926,2]
[425338889,1781700647000,-519.79600067,0.00016109,2]
[425338929,1781700647000,-500.0,0.00016438,2]
[425338928,1781700647000,-500.0,0.00016438,2]
[425338924,1781700647000,-500.0,0.00016438,2]
[425338925,1781700647000,-588.28,0.00016438,2]
[425338926,1781700647000,-792.86,0.00016438,2]
[425338920,1781700647000,-500.0,0.00016438,2]
[425338927,1781700647000,-500.0,0.00016438,2]
[425338923,1781700647000,-753.9,0.00016438,2]
[425338932,1781700647000,-1552.49,0.00016438,2]
[425338933,1781700647000,-500.0,0.00016438,2]
[425338931,1781700647000,-927.99,0.00016438,2]
[425338936,1781700647000,-491.0788853,0.00016438,2]
[425338934,1781700647000,-500.0,0.00016438,2]
[425338938,1781700647000,-500.0,0.00016438,2]
[425338937,1781700647000,-500.0,0.00016438,2]
[425338935,1781700647000,-631.88,0.00016438,2]
[425338940,1781700647000,-500.0,0.00016438,2]
[425338942,1781700647000,-500.0,0.00016438,2]
[425338939,1781700647000,-229.56525872,0.00016438,2]
[425338950,1781700647000,-564.94,0.00016438,2]
[425338941,1781700647000,-500.0,0.00016438,2]
[425338947,1781700647000,-500.0,0.00016438,2]
[425338945,1781700647000,-500.0,0.00016438,2]
[425338943,1781700647000,-505.41,0.00016438,2]
[425338948,1781700647000,-672.07,0.00016438,2]
[425338944,1781700647000,-500.0,0.00016438,2]
[425338946,1781700647000,-500.0,0.00016438,2]
[425338949,1781700647000,-511.71,0.00016438,2]
[425338887,1781700647000,-6420.13825558,0.00015969,2]
[425338921,1781700647000,-500.0,0.00016438,2]
[425338922,1781700647000,-500.0,0.00016438,2]
[425338951,1781700647000,-517.79,0.00016438,2]
[425338930,1781700647000,-503.62266987,0.00016438,2]
[425338918,1781700647000,-500.0,0.00016438,2]
[425338892,1781700647000,-600.0,0.00016433,2]
[425338894,1781700647000,-500.0,0.00016438,2]
[425338893,1781700647000,-1170.0873,0.00016438,2]
[425338901,1781700647000,-703.38,0.00016438,2]
[425338899,1781700647000,-500.0,0.00016438,2]
[425338898,1781700647000,-958.4,0.00016438,2]
[425338904,1781700647000,-500.0,0.00016438,2]
[425338902,1781700647000,-1000.0,0.00016438,2]
[425338903,1781700647000,-500.0,0.00016438,2]
[425338895,1781700647000,-593.58,0.00016438,2]
[425338896,1781700647000,-500.0,0.00016438,2]
[425338900,1781700647000,-500.0,0.00016438,2]
[425338897,1781700647000,-500.0,0.00016438,2]
[425338888,1781700647000,-592602.67435073,0.00016,2]
[425338916,1781700647000,-500.0,0.00016438,2]
[425338906,1781700647000,-500.0,0.00016438,2]
[425338919,1781700647000,-500.0,0.00016438,2]
[425338909,1781700647000,-500.0,0.00016438,2]
[425338915,1781700647000,-500.0,0.00016438,2]
[425338910,1781700647000,-500.0,0.00016438,2]
[425338907,1781700647000,-500.0,0.00016438,2]
[425338912,1781700647000,-500.0,0.00016438,2]
[425338905,1781700647000,-1489.55,0.00016438,2]
[425338913,1781700647000,-613.84626154,0.00016438,2]
[425338911,1781700647000,-500.0,0.00016438,2]
[425338914,1781700647000,-568.16,0.00016438,2]
[425338908,1781700647000,-500.0,0.00016438,2]
[425338917,1781700647000,-500.0,0.00016438,2]
[425339001,1781700648000,-500.0,0.00016438,2]
[425338996,1781700648000,-919.99,0.00016438,2]
[425338989,1781700648000,-15151.48,0.00016438,2]
[425339000,1781700648000,-500.0,0.00016438,2]
[425338992,1781700648000,-1299.7,0.00016438,2]
[425338981,1781700648000,-500.0,0.00016438,2]
[425339002,1781700648000,-500.0,0.00016438,2]
[425338990,1781700648000,-500.0,0.00016438,2]
[425338982,1781700648000,-1000.0,0.00016438,2]
[425338983,1781700648000,-500.0,0.00016438,2]
[425338984,1781700648000,-1577.64,0.00016438,2]
[425338991,1781700648000,-500.0,0.00016438,2]
[425338995,1781700648000,-868.75,0.00016438,2]
[425339004,1781700648000,-500.0,0.00016438,2]
[425338997,1781700648000,-500.0,0.00016438,2]
[425338994,1781700648000,-500.0,0.00016438,2]
[425338998,1781700648000,-500.0,0.00016438,2]
[425338993,1781700648000,-500.0,0.00016438,2]
[425339003,1781700648000,-597.5,0.00016438,2]
[425339007,1781700648000,-960.87,0.00016438,2]
[425339005,1781700648000,-500.0,0.00016438,2]
[425339006,1781700648000,-740.55,0.00016438,2]
[425339008,1781700648000,-813.65,0.00016438,2]
[425339009,1781700648000,-672.0,0.00016438,2]
[425339014,1781700648000,-2669.44,0.00016438,2]
[425339010,1781700648000,-500.0,0.00016438,2]
[425338986,1781700648000,-500.0,0.00016438,2]
[425339013,1781700648000,-500.0,0.00016438,2]
[425338999,1781700648000,-1354.36,0.00016438,2]
[425338988,1781700648000,-998.21,0.00016438,2]
[425338965,1781700648000,-500.0,0.00016438,2]
[425338987,1781700648000,-500.0,0.00016438,2]
[425339011,1781700648000,-500.0,0.00016438,2]
[425338956,1781700648000,-203.4484675,0.00016438,2]
[425338955,1781700648000,-500.0,0.00016438,2]
[425338959,1781700648000,-500.0,0.00016438,2]
[425338953,1781700648000,-500.0,0.00016438,2]
[425338961,1781700648000,-500.0,0.00016438,2]
[425338952,1781700648000,-500.0,0.00016438,2]
[425338962,1781700648000,-500.0,0.00016438,2]
[425338957,1781700648000,-500.0,0.00016438,2]
[425338960,1781700648000,-780.21,0.00016438,2]
[425338958,1781700648000,-500.0,0.00016438,2]
[425338964,1781700648000,-500.0,0.00016438,2]
[425338963,1781700648000,-555.96,0.00016438,2]
[425338985,1781700648000,-2093.22,0.00016438,2]
[425338974,1781700648000,-500.0,0.00016438,2]
[425338968,1781700648000,-2163.55,0.00016438,2]
[425338967,1781700648000,-500.0,0.00016438,2]
[425338973,1781700648000,-500.0,0.00016438,2]
[425338972,1781700648000,-2539.26,0.00016438,2]
[425338966,1781700648000,-500.0,0.00016438,2]
[425338970,1781700648000,-500.0,0.00016438,2]
[425338969,1781700648000,-1114.74,0.00016438,2]
[425338971,1781700648000,-500.0,0.00016438,2]
[425338977,1781700648000,-500.0,0.00016438,2]
[425338978,1781700648000,-500.0,0.00016438,2]
[425338976,1781700648000,-3975.91,0.00016438,2]
[425338980,1781700648000,-500.0,0.00016438,2]
[425338979,1781700648000,-982.42,0.00016438,2]
[425338975,1781700648000,-479.44783022,0.00016438,2]
[425339012,1781700648000,-2162.52,0.00016438,2]
[425338954,1781700648000,-500.0,0.00016438,2]
[425339015,1781700648000,-500.0,0.00016438,2]
[425339047,1781700648000,-151.0,0.00016438,2]
[425339051,1781700648000,-151.0,0.00016438,2]
[425339050,1781700648000,-151.0,0.00016438,2]
[425339048,1781700648000,-151.0,0.00016438,2]
[425339063,1781700648000,-151.0,0.00016438,2]
[425339055,1781700648000,-251.618297,0.00016438,2]
[425339066,1781700648000,-151.0,0.00016438,2]
[425339065,1781700648000,-151.0,0.00016438,2]
[425339054,1781700648000,-151.0,0.00016438,2]
[425339064,1781700648000,-151.0,0.00016438,2]
[425339056,1781700648000,-154.592227,0.00016438,2]
[425339057,1781700648000,-151.0,0.00016438,2]
[425339060,1781700648000,-151.0,0.00016438,2]
[425339046,1781700648000,-151.0,0.00016438,2]
[425339058,1781700648000,-151.0,0.00016438,2]
[425339059,1781700648000,-151.0,0.00016438,2]
[425339068,1781700648000,-151.0,0.00016438,2]
[425339067,1781700648000,-151.0,0.00016438,2]
[425339071,1781700648000,-228.76512,0.00016438,2]
[425339077,1781700648000,-813.5553,0.00016712,2]
[425339069,1781700648000,-151.0,0.00016438,2]
[425339073,1781700648000,-224.2685,0.00016575,2]
[425339070,1781700648000,-151.0,0.00016438,2]
[425339074,1781700648000,-900.0,0.00016712,2]
[425339072,1781700648000,-177.257,0.00016471,2]
[425339075,1781700648000,-370.0,0.00016712,2]
[425339076,1781700648000,-504.2161,0.00016712,2]
[425339016,1781700648000,-500.0,0.00016438,2]
[425339061,1781700648000,-151.0,0.00016438,2]
[425339049,1781700648000,-151.0,0.00016438,2]
[425339062,1781700648000,-151.0,0.00016438,2]
[425339045,1781700648000,-151.0,0.00016438,2]
[425339018,1781700648000,-500.0,0.00016438,2]
[425339043,1781700648000,-179.4363284,0.00016438,2]
[425339017,1781700648000,-721.63,0.00016438,2]
[425339025,1781700648000,-500.0,0.00016438,2]
[425339026,1781700648000,-500.0,0.00016438,2]
[425339023,1781700648000,-500.0,0.00016438,2]
[425339027,1781700648000,-500.0,0.00016438,2]
[425339021,1781700648000,-500.0,0.00016438,2]
[425339022,1781700648000,-500.0,0.00016438,2]
[425339024,1781700648000,-619.23236792,0.00016438,2]
[425339020,1781700648000,-959.26,0.00016438,2]
[425339029,1781700648000,-500.0,0.00016438,2]
[425339028,1781700648000,-500.0,0.00016438,2]
[425339039,1781700648000,-500.0,0.00016438,2]
[425339040,1781700648000,-500.0,0.00016438,2]
[425339019,1781700648000,-500.0,0.00016438,2]
[425339053,1781700648000,-153.281698,0.00016438,2]
[425339052,1781700648000,-151.0,0.00016438,2]
[425339034,1781700648000,-500.0,0.00016438,2]
[425339041,1781700648000,-547.89,0.00016438,2]
[425339044,1781700648000,-151.0,0.00016438,2]
[425339042,1781700648000,-500.0,0.00016438,2]
[425339036,1781700648000,-2471.54,0.00016438,2]
[425339032,1781700648000,-151.60239744,0.00016438,2]
[425339033,1781700648000,-779.92,0.00016438,2]
[425339030,1781700648000,-1029.49,0.00016438,2]
[425339037,1781700648000,-500.0,0.00016438,2]
[425339031,1781700648000,-2581.44,0.00016438,2]
[425339038,1781700648000,-500.0,0.00016438,2]
[425339035,1781700648000,-614.42777524,0.00016438,2]
[425339109,1781700649000,-588.28,0.00016712,2]
[425339125,1781700649000,-500.0,0.00016712,2]
[425339123,1781700649000,-505.41,0.00016712,2]
[425339119,1781700649000,-500.0,0.00016712,2]
[425339114,1781700649000,-927.99,0.00016712,2]
[425339105,1781700649000,-500.0,0.00016712,2]
[425339113,1781700649000,-500.0,0.00016712,2]
[425339108,1781700649000,-500.0,0.00016712,2]
[425339115,1781700649000,-1552.49,0.00016712,2]
[425339106,1781700649000,-507.40932143,0.00016712,2]
[425339126,1781700649000,-500.0,0.00016712,2]
[425339111,1781700649000,-500.0,0.00016712,2]
[425339124,1781700649000,-500.0,0.00016712,2]
[425339138,1781700649000,-212.35189791,0.00016712,2]
[425339127,1781700649000,-500.0,0.00016712,2]
[425339121,1781700649000,-368.40362075,0.00016712,2]
[425339122,1781700649000,-500.0,0.00016712,2]
[425339120,1781700649000,-500.0,0.00016712,2]
[425339128,1781700649000,-672.07,0.00016712,2]
[425339130,1781700649000,-564.94,0.00016712,2]
[425339131,1781700649000,-517.79,0.00016712,2]
[425339135,1781700649000,-500.0,0.00016712,2]
[425339134,1781700649000,-500.0,0.00016712,2]
[425339137,1781700649000,-500.0,0.00016712,2]
[425339133,1781700649000,-500.0,0.00016712,2]
[425339136,1781700649000,-500.0,0.00016712,2]
[425339132,1781700649000,-500.0,0.00016712,2]
[425339116,1781700649000,-500.0,0.00016712,2]
[425339129,1781700649000,-511.71,0.00016712,2]
[425339112,1781700649000,-500.0,0.00016712,2]
[425339078,1781700649000,-500.0,0.00016712,2]
[425339110,1781700649000,-792.86,0.00016712,2]
[425339139,1781700649000,-780.21,0.00016712,2]
[425339079,1781700649000,-593.58,0.00016712,2]
[425339080,1781700649000,-500.0,0.00016712,2]
[425339081,1781700649000,-215.77507392,0.00016712,2]
[425339082,1781700649000,-958.4,0.00016712,2]
[425339090,1781700649000,-500.0,0.00016712,2]
[425339083,1781700649000,-304.76499674,0.00016712,2]
[425339091,1781700649000,-500.0,0.00016712,2]
[425339085,1781700649000,-703.38,0.00016712,2]
[425339087,1781700649000,-500.0,0.00016712,2]
[425339084,1781700649000,-500.0,0.00016712,2]
[425339088,1781700649000,-500.0,0.00016712,2]
[425339086,1781700649000,-1000.0,0.00016712,2]
[425339118,1781700649000,-631.88,0.00016712,2]
[425339089,1781700649000,-1489.55,0.00016712,2]
[425339102,1781700649000,-500.0,0.00016712,2]
[425339092,1781700649000,-500.0,0.00016712,2]
[425339095,1781700649000,-500.0,0.00016712,2]
[425339094,1781700649000,-500.0,0.00016712,2]
[425339104,1781700649000,-500.0,0.00016712,2]
[425339103,1781700649000,-500.0,0.00016712,2]
[425339096,1781700649000,-500.0,0.00016712,2]
[425339099,1781700649000,-500.0,0.00016712,2]
[425339100,1781700649000,-500.0,0.00016712,2]
[425339101,1781700649000,-500.0,0.00016712,2]
[425339097,1781700649000,-568.16,0.00016712,2]
[425339098,1781700649000,-500.0,0.00016712,2]
[425339107,1781700649000,-753.9,0.00016712,2]
[425339093,1781700649000,-500.0,0.00016712,2]
[425339141,1781700649000,-530.66536063,0.00016712,2]
[425339117,1781700649000,-500.0,0.00016712,2]
[425339143,1781700649000,-500.0,0.00016712,2]
[425339177,1781700649000,-1354.36,0.00016712,2]
[425339174,1781700649000,-500.0,0.00016712,2]
[425339173,1781700649000,-919.99,0.00016712,2]
[425339178,1781700649000,-500.0,0.00016712,2]
[425339180,1781700649000,-500.0,0.00016712,2]
[425339179,1781700649000,-500.0,0.00016712,2]
[425339176,1781700649000,-500.0,0.00016712,2]
[425339184,1781700649000,-813.65,0.00016712,2]
[425339183,1781700649000,-740.55,0.00016712,2]
[425339185,1781700649000,-960.87,0.00016712,2]
[425339191,1781700649000,-2669.44,0.00016712,2]
[425339190,1781700649000,-500.0,0.00016712,2]
[425339188,1781700649000,-500.0,0.00016712,2]
[425339175,1781700649000,-868.75,0.00016712,2]
[425339186,1781700649000,-672.0,0.00016712,2]
[425339187,1781700649000,-500.0,0.00016712,2]
[425339189,1781700649000,-2162.52,0.00016712,2]
[425339193,1781700649000,-500.0,0.00016712,2]
[425339195,1781700649000,-500.0,0.00016712,2]
[425339196,1781700649000,-500.0,0.00016712,2]
[425339197,1781700649000,-959.26,0.00016712,2]
[425339194,1781700649000,-721.63,0.00016712,2]
[425339199,1781700649000,-500.0,0.00016712,2]
[425339198,1781700649000,-500.0,0.00016712,2]
[425339202,1781700649000,-500.0,0.00016712,2]
[425339203,1781700649000,-492.63451359,0.00016712,2]
[425339201,1781700649000,-500.0,0.00016712,2]
[425339140,1781700649000,-500.0,0.00016712,2]
[425339192,1781700649000,-500.0,0.00016712,2]
[425339172,1781700649000,-500.0,0.00016712,2]
[425339200,1781700649000,-500.0,0.00016712,2]
[425339181,1781700649000,-597.5,0.00016712,2]
[425339142,1781700649000,-555.96,0.00016712,2]
[425339170,1781700649000,-1299.7,0.00016712,2]
[425339144,1781700649000,-500.0,0.00016712,2]
[425339145,1781700649000,-500.0,0.00016712,2]
[425339154,1781700649000,-3975.91,0.00016712,2]
[425339146,1781700649000,-500.0,0.00016712,2]
[425339155,1781700649000,-500.0,0.00016712,2]
[425339151,1781700649000,-2539.26,0.00016712,2]
[425339149,1781700649000,-500.0,0.00016712,2]
[425339147,1781700649000,-2163.55,0.00016712,2]
[425339148,1781700649000,-1114.74,0.00016712,2]
[425339150,1781700649000,-500.0,0.00016712,2]
[425339152,1781700649000,-500.0,0.00016712,2]
[425339156,1781700649000,-500.0,0.00016712,2]
[425339153,1781700649000,-500.0,0.00016712,2]
[425339159,1781700649000,-500.0,0.00016712,2]
[425339158,1781700649000,-500.0,0.00016712,2]
[425339182,1781700649000,-500.0,0.00016712,2]
[425339161,1781700649000,-500.0,0.00016712,2]
[425339167,1781700649000,-15151.48,0.00016712,2]
[425339168,1781700649000,-500.0,0.00016712,2]
[425339166,1781700649000,-998.21,0.00016712,2]
[425339171,1781700649000,-500.0,0.00016712,2]
[425339169,1781700649000,-500.0,0.00016712,2]
[425339160,1781700649000,-1000.0,0.00016712,2]
[425339164,1781700649000,-500.0,0.00016712,2]
[425339163,1781700649000,-2093.22,0.00016712,2]
[425339157,1781700649000,-982.42,0.00016712,2]
[425339162,1781700649000,-1577.64,0.00016712,2]
[425339165,1781700649000,-500.0,0.00016712,2]
[425339242,1781700650000,-500.0,0.00016986,2]
[425339235,1781700650000,-500.0,0.00016986,2]
[425339246,1781700650000,-500.0,0.00016986,2]
[425339241,1781700650000,-568.16,0.00016986,2]
[425339239,1781700650000,-500.0,0.00016986,2]
[425339238,1781700650000,-500.0,0.00016986,2]
[425339237,1781700650000,-500.0,0.00016986,2]
[425339240,1781700650000,-500.0,0.00016986,2]
[425339231,1781700650000,-515.84947589,0.00016986,2]
[425339236,1781700650000,-500.0,0.00016986,2]
[425339234,1781700650000,-563.65832554,0.00016986,2]
[425339259,1781700650000,-500.0,0.00016986,2]
[425339244,1781700650000,-500.0,0.00016986,2]
[425339243,1781700650000,-500.0,0.00016986,2]
[425339248,1781700650000,-500.0,0.00016986,2]
[425339258,1781700650000,-1552.49,0.00016986,2]
[425339260,1781700650000,-631.88,0.00016986,2]
[425339249,1781700650000,-500.0,0.00016986,2]
[425339253,1781700650000,-792.86,0.00016986,2]
[425339250,1781700650000,-753.9,0.00016986,2]
[425339256,1781700650000,-500.0,0.00016986,2]
[425339247,1781700650000,-500.0,0.00016986,2]
[425339229,1781700650000,-703.38,0.00016986,2]
[425339252,1781700650000,-588.28,0.00016986,2]
[425339245,1781700650000,-500.0,0.00016986,2]
[425339230,1781700650000,-1000.0,0.00016986,2]
[425339212,1781700650000,-500.0,0.00016712,2]
[425339228,1781700650000,-500.0,0.00016986,2]
[425339257,1781700650000,-927.99,0.00016986,2]
[425339207,1781700650000,-2581.44,0.00016712,2]
[425339205,1781700650000,-1029.49,0.00016712,2]
[425339206,1781700650000,-500.0,0.00016712,2]
[425339204,1781700650000,-500.0,0.00016712,2]
[425339208,1781700650000,-779.92,0.00016712,2]
[425339209,1781700650000,-2471.54,0.00016712,2]
[425339210,1781700650000,-500.0,0.00016712,2]
[425339219,1781700650000,-160.0,0.00016805,2]
[425339220,1781700650000,-160.0,0.00016805,2]
[425339211,1781700650000,-500.0,0.00016712,2]
[425339215,1781700650000,-500.0,0.00016712,2]
[425339214,1781700650000,-547.89,0.00016712,2]
[425339217,1781700650000,-167.0065886,0.000168,2]
[425339216,1781700650000,-687.08400153,0.000168,2]
[425339213,1781700650000,-500.0,0.00016712,2]
[425339218,1781700650000,-160.0,0.00016805,2]
[425339222,1781700650000,-709.6,0.00016986,2]
[425339221,1781700650000,-417.15472785,0.00016932,3]
[425339232,1781700650000,-500.0,0.00016986,2]
[425339223,1781700650000,-608.1714,0.00016986,2]
[425339233,1781700650000,-1489.55,0.00016986,2]
[425339227,1781700650000,-958.4,0.00016986,2]
[425339226,1781700650000,-500.0,0.00016986,2]
[425339224,1781700650000,-500.0,0.00016986,2]
[425339225,1781700650000,-593.58,0.00016986,2]
[425339251,1781700650000,-500.0,0.00016986,2]
[425339292,1781700650000,-2539.26,0.00016986,2]
[425339254,1781700650000,-500.0,0.00016986,2]
[425339284,1781700650000,-500.0,0.00016986,2]
[425339289,1781700650000,-1114.74,0.00016986,2]
[425339287,1781700650000,-500.0,0.00016986,2]
[425339298,1781700650000,-982.42,0.00016986,2]
[425339294,1781700650000,-500.0,0.00016986,2]
[425339306,1781700650000,-500.0,0.00016986,2]
[425339297,1781700650000,-500.0,0.00016986,2]
[425339255,1781700650000,-500.0,0.00016986,2]
[425339302,1781700650000,-500.0,0.00016986,2]
[425339295,1781700650000,-3975.91,0.00016986,2]
[425339299,1781700650000,-500.0,0.00016986,2]
[425339304,1781700650000,-2093.22,0.00016986,2]
[425339305,1781700650000,-500.0,0.00016986,2]
[425339307,1781700650000,-15151.48,0.00016986,2]
[425339296,1781700650000,-500.0,0.00016986,2]
[425339303,1781700650000,-1577.64,0.00016986,2]
[425339301,1781700650000,-1000.0,0.00016986,2]
[425339308,1781700650000,-998.21,0.00016986,2]
[425339309,1781700650000,-500.0,0.00016986,2]
[425339311,1781700650000,-1299.7,0.00016986,2]
[425339310,1781700650000,-500.0,0.00016986,2]
[425339313,1781700650000,-500.0,0.00016986,2]
[425339312,1781700650000,-500.0,0.00016986,2]
[425339314,1781700650000,-919.99,0.00016986,2]
[425339315,1781700650000,-500.0,0.00016986,2]
[425339288,1781700650000,-2163.55,0.00016986,2]
[425339286,1781700650000,-500.0,0.00016986,2]
[425339300,1781700650000,-500.0,0.00016986,2]
[425339282,1781700650000,-500.0,0.00016986,2]
[425339263,1781700650000,-80.82681042,0.00016986,2]
[425339261,1781700650000,-500.0,0.00016986,2]
[425339293,1781700650000,-500.0,0.00016986,2]
[425339264,1781700650000,-453.44420939,0.00016986,2]
[425339265,1781700650000,-500.0,0.00016986,2]
[425339266,1781700650000,-505.41,0.00016986,2]
[425339269,1781700650000,-500.0,0.00016986,2]
[425339270,1781700650000,-500.0,0.00016986,2]
[425339268,1781700650000,-500.0,0.00016986,2]
[425339278,1781700650000,-500.0,0.00016986,2]
[425339275,1781700650000,-500.0,0.00016986,2]
[425339273,1781700650000,-564.94,0.00016986,2]
[425339262,1781700650000,-500.0,0.00016986,2]
[425339279,1781700650000,-500.0,0.00016986,2]
[425339272,1781700650000,-511.71,0.00016986,2]
[425339291,1781700650000,-500.0,0.00016986,2]
[425339285,1781700650000,-500.0,0.00016986,2]
[425339290,1781700650000,-500.0,0.00016986,2]
[425339281,1781700650000,-780.21,0.00016986,2]
[425339283,1781700650000,-555.96,0.00016986,2]
[425339276,1781700650000,-500.0,0.00016986,2]
[425339277,1781700650000,-500.0,0.00016986,2]
[425339267,1781700650000,-500.0,0.00016986,2]
[425339274,1781700650000,-517.79,0.00016986,2]
[425339271,1781700650000,-672.07,0.00016986,2]
[425339280,1781700650000,-500.0,0.00016986,2]
[425339328,1781700651000,-500.0,0.00016986,2]
[425339335,1781700651000,-721.63,0.00016986,2]
[425339334,1781700651000,-500.0,0.00016986,2]
[425339331,1781700651000,-500.0,0.00016986,2]
[425339329,1781700651000,-500.0,0.00016986,2]
[425339330,1781700651000,-2162.52,0.00016986,2]
[425339338,1781700651000,-959.26,0.00016986,2]
[425339327,1781700651000,-672.0,0.00016986,2]
[425339326,1781700651000,-960.87,0.00016986,2]
[425339322,1781700651000,-597.5,0.00016986,2]
[425339324,1781700651000,-813.65,0.00016986,2]
[425339325,1781700651000,-740.55,0.00016986,2]
[425339320,1781700651000,-500.0,0.00016986,2]
[425339332,1781700651000,-2669.44,0.00016986,2]
[425339319,1781700651000,-500.0,0.00016986,2]
[425339318,1781700651000,-1354.36,0.00016986,2]
[425339317,1781700651000,-500.0,0.00016986,2]
[425339316,1781700651000,-868.75,0.00016986,2]
[425339323,1781700651000,-500.0,0.00016986,2]
[425339333,1781700651000,-502.95469419,0.00016986,2]
[425339321,1781700651000,-500.0,0.00016986,2]
[425339336,1781700651000,-500.0,0.00016986,2]
[425339356,1781700651000,-104148.55766042,0.00017,2]
[425339354,1781700651000,-547.89,0.00016986,2]
[425339357,1781700651000,-3823.75520496,0.00017,2]
[425339355,1781700651000,-500.0,0.00016986,2]
[425339358,1781700651000,-1482.61,0.00017,2]
[425339352,1781700651000,-500.0,0.00016986,2]
[425339353,1781700651000,-500.0,0.00016986,2]
[425339346,1781700651000,-500.0,0.00016986,2]
[425339347,1781700651000,-2581.44,0.00016986,2]
[425339350,1781700651000,-500.0,0.00016986,2]
[425339337,1781700651000,-500.0,0.00016986,2]
[425339344,1781700651000,-500.0,0.00016986,2]
[425339341,1781700651000,-520.36357014,0.00016986,2]
[425339339,1781700651000,-500.0,0.00016986,2]
[425339342,1781700651000,-500.0,0.00016986,2]
[425339340,1781700651000,-500.0,0.00016986,2]
[425339343,1781700651000,-500.0,0.00016986,2]
[425339349,1781700651000,-2471.54,0.00016986,2]